[Event "Early-Titled-Tuesday-Blitz-March-19-2024"]
[Site "Chess.com"]
[Date "2024.03.19"]
[Round "5"]
[White "Willhaven3"]
[Black "IraZyne"]
[Result "1-0"]
[WhiteElo "2535"]
[BlackElo "2333"]
[TimeControl "180+1"]
[EndTime "8:55:08 PDT"]
[Termination "Willhaven3 won by resignation"]

1. e4 {[%clk 0:03:00.9]} 1... Nf6 {[%clk 0:02:58.6]} 2. e5 {[%clk 0:03:00.8]}
2... Nd5 {[%clk 0:02:57.9]} 3. d4 {[%clk 0:03:01.2]} 3... d6 {[%clk 0:02:58]} 4.
Nf3 {[%clk 0:03:01.5]} 4... Bg4 {[%clk 0:02:57.3]} 5. c4 {[%clk 0:03:01.4]} 5...
Nb6 {[%clk 0:02:56.6]} 6. exd6 {[%clk 0:02:56.8]} 6... exd6 {[%clk 0:02:56.5]}
7. Nc3 {[%clk 0:02:54.3]} 7... Be7 {[%clk 0:02:56.1]} 8. Be3 {[%clk 0:02:54.4]}
8... O-O {[%clk 0:02:55]} 9. b3 {[%clk 0:02:54.7]} 9... d5 {[%clk 0:02:52.8]}
10. c5 {[%clk 0:02:54.5]} 10... Nc8 {[%clk 0:02:52.8]} 11. Be2 {[%clk
0:02:54.9]} 11... Re8 {[%clk 0:02:52.9]} 12. O-O {[%clk 0:02:54.7]} 12... Bf6
{[%clk 0:02:52.6]} 13. b4 {[%clk 0:02:53.9]} 13... c6 {[%clk 0:02:44.7]} 14. a4
{[%clk 0:02:52.5]} 14... Nd7 {[%clk 0:02:43]} 15. b5 {[%clk 0:02:50.1]} 15...
Nxc5 {[%clk 0:02:36.5]} 16. dxc5 {[%clk 0:02:43.9]} 16... Bxc3 {[%clk 0:02:35]}
17. Rb1 {[%clk 0:02:38.9]} 17... Ne7 {[%clk 0:02:31.9]} 18. Qc2 {[%clk 0:02:33]}
18... Bf6 {[%clk 0:02:29.5]} 19. bxc6 {[%clk 0:02:23.1]} 19... bxc6 {[%clk
0:02:28.2]} 20. Rb7 {[%clk 0:02:17.4]} 20... g6 {[%clk 0:02:18.5]} 21. h3 {[%clk
0:02:12.4]} 21... Bf5 {[%clk 0:02:17.9]} 22. Bd3 {[%clk 0:02:10.7]} 22... Bxd3
{[%clk 0:02:17.1]} 23. Qxd3 {[%clk 0:02:11.6]} 23... Qa5 {[%clk 0:02:15.7]} 24.
Qb3 {[%clk 0:02:05.1]} 24... Nf5 {[%clk 0:02:09.5]} 25. Bd2 {[%clk 0:01:53.5]}
25... Qxc5 {[%clk 0:02:08.5]} 26. Rc1 {[%clk 0:01:53.5]} 26... Qd6 {[%clk
0:02:03.1]} 27. a5 {[%clk 0:01:52.6]} 27... c5 {[%clk 0:01:45.7]} 28. Qb5 {[%clk
0:01:42.3]} 28... Rec8 {[%clk 0:01:40.3]} 29. Rd7 {[%clk 0:01:36.7]} 29... Qe6
{[%clk 0:01:34.7]} 30. Re1 {[%clk 0:01:34.4]} 30... Qc6 {[%clk 0:01:27]} 31.
Re8+ {[%clk 0:01:11.9]} 31... Kg7 {[%clk 0:01:24.9]} 32. Qxc6 {[%clk 0:01:10.3]}
32... Rxc6 {[%clk 0:01:24.5]} 33. Rxa8 {[%clk 0:01:10.6]} 33... c4 {[%clk
0:01:25.1]} 34. Raxa7 {[%clk 0:01:06.5]} 34... Nd6 {[%clk 0:01:24.6]} 35. Rac7
{[%clk 0:01:04.4]} 1-0

[Event "Early-Titled-Tuesday-Blitz-March-19-2024"]
[Site "Chess.com"]
[Date "2024.03.19"]
[Round "5"]
[White "Kimkibo"]
[Black "Kolle05"]
[Result "0-1"]
[WhiteElo "2274"]
[BlackElo "2579"]
[TimeControl "180+1"]
[EndTime "8:55:20 PDT"]
[Termination "Kolle05 won by resignation"]

1. d4 {[%clk 0:03:00.5]} 1... Nf6 {[%clk 0:02:59.6]} 2. Nf3 {[%clk 0:03:00.7]}
2... g6 {[%clk 0:02:59.2]} 3. Bf4 {[%clk 0:03:00.3]} 3... Bg7 {[%clk 0:02:59.1]}
4. e3 {[%clk 0:03:00.7]} 4... O-O {[%clk 0:02:58.3]} 5. h3 {[%clk 0:03:00.5]}
5... d6 {[%clk 0:02:58.4]} 6. Be2 {[%clk 0:02:59.8]} 6... c5 {[%clk 0:02:58.5]}
7. c3 {[%clk 0:02:58.4]} 7... Qb6 {[%clk 0:02:58.3]} 8. Qc1 {[%clk 0:02:57.2]}
8... Nc6 {[%clk 0:02:56.5]} 9. O-O {[%clk 0:02:56.3]} 9... Be6 {[%clk
0:02:51.8]} 10. Nbd2 {[%clk 0:02:54.8]} 10... Rac8 {[%clk 0:02:48.1]} 11. Bh2
{[%clk 0:02:38.9]} 11... cxd4 {[%clk 0:01:50.9]} 12. exd4 {[%clk 0:02:38.8]}
12... Nd5 {[%clk 0:01:50.3]} 13. Nb3 {[%clk 0:02:32.4]} 13... a5 {[%clk
0:01:47.4]} 14. Qd2 {[%clk 0:02:27.8]} 14... a4 {[%clk 0:01:46.1]} 15. Nc1
{[%clk 0:02:28]} 15... Na5 {[%clk 0:01:45.9]} 16. Ng5 {[%clk 0:02:10.2]} 16...
Bd7 {[%clk 0:01:39.1]} 17. Bd3 {[%clk 0:02:05.8]} 17... Nc4 {[%clk 0:01:35.3]}
18. Bxc4 {[%clk 0:02:05.6]} 18... Rxc4 {[%clk 0:01:36.2]} 19. Nd3 {[%clk
0:02:05.7]} 19... a3 {[%clk 0:01:31.4]} 20. Rab1 {[%clk 0:02:00.7]} 20... axb2
{[%clk 0:01:30]} 21. Rxb2 {[%clk 0:02:01.6]} 21... Qc7 {[%clk 0:01:29.3]} 22.
Ne4 {[%clk 0:01:51.9]} 22... Nxc3 {[%clk 0:01:15]} 23. Nxc3 {[%clk 0:01:49.2]}
23... Rxc3 {[%clk 0:01:15.9]} 24. Rxb7 {[%clk 0:01:48.9]} 24... Qxb7 {[%clk
0:01:15.9]} 25. Qxc3 {[%clk 0:01:48.8]} 25... Rc8 {[%clk 0:01:16.2]} 26. Qb4
{[%clk 0:01:45]} 26... Qxb4 {[%clk 0:00:42.8]} 27. Nxb4 {[%clk 0:01:45.9]} 27...
Bxd4 {[%clk 0:00:43.1]} 28. Nd5 {[%clk 0:01:45.6]} 28... Kf8 {[%clk 0:00:42.3]}
29. Re1 {[%clk 0:01:43.6]} 29... Be6 {[%clk 0:00:40.9]} 30. Nb4 {[%clk
0:01:39.4]} 30... Bc3 {[%clk 0:00:39.7]} 31. Rb1 {[%clk 0:01:39]} 31... Bf5
{[%clk 0:00:39.3]} 32. Rb3 {[%clk 0:01:37.8]} 32... Bxb4 {[%clk 0:00:39.5]} 0-1

[Event "Early-Titled-Tuesday-Blitz-March-19-2024"]
[Site "Chess.com"]
[Date "2024.03.19"]
[Round "5"]
[White "martinbitel"]
[Black "Alenzer"]
[Result "1-0"]
[WhiteElo "2411"]
[BlackElo "2160"]
[TimeControl "180+1"]
[EndTime "8:55:23 PDT"]
[Termination "martinbitel won by checkmate"]

1. e4 {[%clk 0:03:00.9]} 1... c5 {[%clk 0:02:59.7]} 2. Nf3 {[%clk 0:03:00.4]}
2... e6 {[%clk 0:02:59.8]} 3. d4 {[%clk 0:02:57.3]} 3... cxd4 {[%clk 0:03:00.1]}
4. Nxd4 {[%clk 0:02:58.2]} 4... Nf6 {[%clk 0:03:00.3]} 5. Bd3 {[%clk 0:02:52.5]}
5... Nc6 {[%clk 0:03:00.2]} 6. Nxc6 {[%clk 0:02:49.8]} 6... bxc6 {[%clk
0:02:57.8]} 7. O-O {[%clk 0:02:49.9]} 7... Be7 {[%clk 0:02:54.3]} 8. e5 {[%clk
0:02:37.7]} 8... Nd5 {[%clk 0:02:49.8]} 9. c4 {[%clk 0:02:36.9]} 9... Nb6 {[%clk
0:02:43.8]} 10. Nc3 {[%clk 0:02:24.1]} 10... d5 {[%clk 0:02:26]} 11. exd6 {[%clk
0:01:55.8]} 11... Qxd6 {[%clk 0:02:18.8]} 12. Ne4 {[%clk 0:01:55.9]} 12... Qc7
{[%clk 0:01:48.4]} 13. Qg4 {[%clk 0:01:45.8]} 13... g6 {[%clk 0:01:04.3]} 14.
Qf3 {[%clk 0:01:37.2]} 14... f5 {[%clk 0:00:38.7]} 15. Ng3 {[%clk 0:01:13.8]}
15... e5 {[%clk 0:00:38.5]} 16. Bxf5 {[%clk 0:01:07.3]} 16... gxf5 {[%clk
0:00:37.3]} 17. Qh5+ {[%clk 0:01:07.2]} 17... Kf8 {[%clk 0:00:32.8]} 18. Bh6+
{[%clk 0:01:06.1]} 18... Kg8 {[%clk 0:00:31.6]} 19. Qe8+ {[%clk 0:01:05.8]}
19... Bf8 {[%clk 0:00:29.7]} 20. Qxf8# {[%clk 0:01:06.7]} 1-0

[Event "Early-Titled-Tuesday-Blitz-March-19-2024"]
[Site "Chess.com"]
[Date "2024.03.19"]
[Round "5"]
[White "Barbix1"]
[Black "balack95"]
[Result "0-1"]
[WhiteElo "2279"]
[BlackElo "2471"]
[TimeControl "180+1"]
[EndTime "8:55:31 PDT"]
[Termination "balack95 won on time"]

1. d4 {[%clk 0:02:57.6]} 1... Nf6 {[%clk 0:02:58.9]} 2. c4 {[%clk 0:02:57.4]}
2... e6 {[%clk 0:02:58.5]} 3. Nf3 {[%clk 0:02:56.2]} 3... d5 {[%clk 0:02:55.2]}
4. g3 {[%clk 0:02:55.6]} 4... Be7 {[%clk 0:02:54.7]} 5. Bg2 {[%clk 0:02:55]}
5... O-O {[%clk 0:02:55.3]} 6. O-O {[%clk 0:02:53.4]} 6... c6 {[%clk 0:02:55.8]}
7. Qc2 {[%clk 0:02:42.8]} 7... b6 {[%clk 0:02:55.3]} 8. Rd1 {[%clk 0:02:32.4]}
8... a5 {[%clk 0:02:50.5]} 9. Nbd2 {[%clk 0:02:07.1]} 9... c5 {[%clk 0:02:50.3]}
10. e4 {[%clk 0:02:02.9]} 10... Nc6 {[%clk 0:02:46.6]} 11. dxc5 {[%clk
0:01:39.8]} 11... bxc5 {[%clk 0:02:37.1]} 12. cxd5 {[%clk 0:01:29.4]} 12... exd5
{[%clk 0:02:36.9]} 13. exd5 {[%clk 0:01:16.9]} 13... Nb4 {[%clk 0:02:34.6]} 14.
Qb3 {[%clk 0:01:12.1]} 14... a4 {[%clk 0:02:32.9]} 15. Qc4 {[%clk 0:00:56.5]}
15... Ba6 {[%clk 0:02:31.4]} 16. Qf4 {[%clk 0:00:53.7]} 16... Nfxd5 {[%clk
0:02:27]} 17. Qf5 {[%clk 0:00:45.7]} 17... Be2 {[%clk 0:02:20.9]} 18. Re1 {[%clk
0:00:21.8]} 18... Bd3 {[%clk 0:02:18.2]} 19. Qe5 {[%clk 0:00:19.3]} 19... Bf6
{[%clk 0:02:16.6]} 20. Qh5 {[%clk 0:00:12]} 20... Nc2 {[%clk 0:02:15.3]} 21. Nh4
{[%clk 0:00:04.9]} 21... Ndb4 {[%clk 0:01:57]} 22. Rd1 {[%clk 0:00:01.8]} 22...
Nxa1 {[%clk 0:01:54]} 23. Ne4 {[%clk 0:00:01.8]} 23... Bxh4 {[%clk 0:01:47.6]}
24. gxh4 {[%clk 0:00:01.3]} 24... Ra6 {[%clk 0:01:41.4]} 0-1

[Event "Early-Titled-Tuesday-Blitz-March-19-2024"]
[Site "Chess.com"]
[Date "2024.03.19"]
[Round "5"]
[White "Iskusnyh"]
[Black "MdChess1734"]
[Result "1-0"]
[WhiteElo "2630"]
[BlackElo "2356"]
[TimeControl "180+1"]
[EndTime "8:55:36 PDT"]
[Termination "Iskusnyh won by resignation"]

1. d4 {[%clk 0:03:00.5]} 1... Nf6 {[%clk 0:02:57.4]} 2. c4 {[%clk 0:02:59.2]}
2... e6 {[%clk 0:02:57.6]} 3. g3 {[%clk 0:02:59.3]} 3... Bb4+ {[%clk 0:02:57.2]}
4. Bd2 {[%clk 0:02:57.1]} 4... Qe7 {[%clk 0:02:57.3]} 5. Bg2 {[%clk 0:02:51.5]}
5... Nc6 {[%clk 0:02:56.6]} 6. e3 {[%clk 0:02:51.3]} 6... Bxd2+ {[%clk
0:02:47.1]} 7. Nxd2 {[%clk 0:02:52.2]} 7... d5 {[%clk 0:02:46.3]} 8. Ngf3 {[%clk
0:02:35.6]} 8... O-O {[%clk 0:02:38.9]} 9. O-O {[%clk 0:02:35.3]} 9... Rd8
{[%clk 0:02:29]} 10. Rc1 {[%clk 0:02:30.6]} 10... Ne4 {[%clk 0:01:32.3]} 11.
Nxe4 {[%clk 0:02:13.9]} 11... dxe4 {[%clk 0:01:31.9]} 12. Nd2 {[%clk 0:02:14.1]}
12... f6 {[%clk 0:01:25.3]} 13. Nxe4 {[%clk 0:02:09.7]} 13... e5 {[%clk
0:01:11.1]} 14. d5 {[%clk 0:02:06.6]} 14... Nb4 {[%clk 0:00:59.6]} 15. Qb3
{[%clk 0:02:02.4]} 15... Na6 {[%clk 0:00:55.5]} 16. c5 {[%clk 0:01:45.4]} 16...
Qf7 {[%clk 0:00:54.1]} 17. Rfd1 {[%clk 0:01:40.1]} 17... b6 {[%clk 0:00:43.7]}
18. d6 {[%clk 0:01:26.8]} 18... Qxb3 {[%clk 0:00:10.6]} 19. axb3 {[%clk
0:01:27.7]} 19... Bb7 {[%clk 0:00:08.6]} 20. Nxf6+ {[%clk 0:01:23.5]} 20... gxf6
{[%clk 0:00:03.4]} 21. Bxb7 {[%clk 0:01:24.4]} 1-0

[Event "Early-Titled-Tuesday-Blitz-March-19-2024"]
[Site "Chess.com"]
[Date "2024.03.19"]
[Round "5"]
[White "GnowReopard"]
[Black "NovoselovRoman"]
[Result "1-0"]
[WhiteElo "2798"]
[BlackElo "2546"]
[TimeControl "180+1"]
[EndTime "8:55:38 PDT"]
[Termination "GnowReopard won on time"]

1. c4 {[%clk 0:03:00.9]} 1... e6 {[%clk 0:02:59.2]} 2. Nc3 {[%clk 0:03:00.9]}
2... d5 {[%clk 0:02:59.9]} 3. d4 {[%clk 0:03:00.4]} 3... Nf6 {[%clk 0:03:00.4]}
4. cxd5 {[%clk 0:03:00.6]} 4... exd5 {[%clk 0:03:00.8]} 5. Bg5 {[%clk
0:03:01.1]} 5... Be7 {[%clk 0:03:00.8]} 6. e3 {[%clk 0:03:01.3]} 6... O-O {[%clk
0:02:59.6]} 7. Bd3 {[%clk 0:03:01.5]} 7... Nbd7 {[%clk 0:02:54.1]} 8. Nf3 {[%clk
0:02:58.7]} 8... Re8 {[%clk 0:02:53.1]} 9. h3 {[%clk 0:02:56.5]} 9... c6 {[%clk
0:02:50.4]} 10. Qc2 {[%clk 0:02:56.3]} 10... Nf8 {[%clk 0:02:45.5]} 11. Bf4
{[%clk 0:02:56.1]} 11... Be6 {[%clk 0:02:43]} 12. Ne5 {[%clk 0:02:54.7]} 12...
Rc8 {[%clk 0:02:41.2]} 13. O-O {[%clk 0:02:49.7]} 13... a6 {[%clk 0:02:41.4]}
14. Rac1 {[%clk 0:02:47.6]} 14... c5 {[%clk 0:02:40]} 15. dxc5 {[%clk
0:02:47.3]} 15... Bxc5 {[%clk 0:02:39.7]} 16. Qe2 {[%clk 0:02:46.3]} 16... d4
{[%clk 0:02:32.8]} 17. exd4 {[%clk 0:02:44.5]} 17... Bxd4 {[%clk 0:02:31.1]} 18.
Qf3 {[%clk 0:02:38.4]} 18... Bxc3 {[%clk 0:02:24.6]} 19. bxc3 {[%clk 0:02:37.3]}
19... Nd5 {[%clk 0:02:01.1]} 20. Bd2 {[%clk 0:02:33.5]} 20... b5 {[%clk
0:01:52.8]} 21. Rfe1 {[%clk 0:02:30.9]} 21... Nb6 {[%clk 0:01:42.8]} 22. Rcd1
{[%clk 0:02:28.8]} 22... Qd5 {[%clk 0:01:28.8]} 23. Qg3 {[%clk 0:02:18.7]} 23...
Qxa2 {[%clk 0:01:22.6]} 24. Be3 {[%clk 0:02:18.6]} 24... Nd5 {[%clk 0:01:16.4]}
25. Bd4 {[%clk 0:02:18.9]} 25... Ng6 {[%clk 0:00:52.8]} 26. Nxg6 {[%clk
0:02:00.1]} 26... hxg6 {[%clk 0:00:53.7]} 27. Bxg6 {[%clk 0:02:00.7]} 27... fxg6
{[%clk 0:00:29]} 28. Qxg6 {[%clk 0:02:00.6]} 28... Re7 {[%clk 0:00:29.4]} 29.
Re4 {[%clk 0:02:00.1]} 29... Qc2 {[%clk 0:00:09.8]} 30. Bxg7 {[%clk 0:01:55.4]}
30... Qxd1+ {[%clk 0:00:07]} 31. Kh2 {[%clk 0:01:55.8]} 31... Rxg7 {[%clk
0:00:05.3]} 32. Qxe6+ {[%clk 0:01:55.9]} 32... Kh7 {[%clk 0:00:04.6]} 33. Rh4+
{[%clk 0:01:55.4]} 1-0

[Event "Early-Titled-Tuesday-Blitz-March-19-2024"]
[Site "Chess.com"]
[Date "2024.03.19"]
[Round "5"]
[White "MaxLeto"]
[Black "GMAneta"]
[Result "0-1"]
[WhiteElo "2509"]
[BlackElo "2670"]
[TimeControl "180+1"]
[EndTime "8:55:38 PDT"]
[Termination "GMAneta won on time"]

1. a3 {[%clk 0:02:08.5]} 1... g6 {[%clk 0:02:57.6]} 2. b3 {[%clk 0:02:09.4]}
2... Bg7 {[%clk 0:02:58.4]} 3. c3 {[%clk 0:02:10.3]} 3... d5 {[%clk 0:02:57.6]}
4. d3 {[%clk 0:02:11.2]} 4... e5 {[%clk 0:02:57.3]} 5. e3 {[%clk 0:02:12.1]}
5... c5 {[%clk 0:02:57.1]} 6. f3 {[%clk 0:02:13]} 6... Ne7 {[%clk 0:02:55.1]} 7.
g3 {[%clk 0:02:13.9]} 7... h5 {[%clk 0:02:54.7]} 8. h3 {[%clk 0:02:14.2]} 8...
Nf5 {[%clk 0:02:54.5]} 9. Ne2 {[%clk 0:02:12.5]} 9... Qc7 {[%clk 0:02:39.4]} 10.
e4 {[%clk 0:02:06.3]} 10... Ne7 {[%clk 0:02:38.5]} 11. c4 {[%clk 0:01:59.7]}
11... d4 {[%clk 0:02:33.2]} 12. Bg2 {[%clk 0:01:45.8]} 12... Nbc6 {[%clk
0:02:32.5]} 13. Nd2 {[%clk 0:01:31.9]} 13... h4 {[%clk 0:02:31.2]} 14. gxh4
{[%clk 0:01:22.1]} 14... Bh6 {[%clk 0:02:27.8]} 15. f4 {[%clk 0:01:16.3]} 15...
exf4 {[%clk 0:02:27.1]} 16. Nf3 {[%clk 0:01:16.9]} 16... Ne5 {[%clk 0:02:25.2]}
17. Rf1 {[%clk 0:00:49.4]} 17... N7c6 {[%clk 0:02:19.5]} 18. Nfg1 {[%clk
0:00:31.6]} 18... Qe7 {[%clk 0:02:10.8]} 19. Bxf4 {[%clk 0:00:22.2]} 19... Qxh4+
{[%clk 0:02:05.5]} 20. Kd2 {[%clk 0:00:16.6]} 20... Bxf4+ {[%clk 0:01:57.6]} 21.
Nxf4 {[%clk 0:00:14.2]} 21... Qg3 {[%clk 0:01:57.6]} 22. Nge2 {[%clk 0:00:09]}
22... Qe3+ {[%clk 0:01:55.8]} 23. Kc2 {[%clk 0:00:08.8]} 23... Be6 {[%clk
0:01:55.5]} 24. Nd5 {[%clk 0:00:07.5]} 24... Bxd5 {[%clk 0:01:54.9]} 25. exd5
{[%clk 0:00:08.4]} 25... Ne7 {[%clk 0:01:54.7]} 26. Nf4 {[%clk 0:00:03.4]} 26...
O-O-O {[%clk 0:01:45.3]} 27. b4 {[%clk 0:00:03.3]} 27... Nf5 {[%clk 0:01:39.1]}
28. Be4 {[%clk 0:00:02.8]} 28... Ng3 {[%clk 0:01:38.6]} 0-1

[Event "Early-Titled-Tuesday-Blitz-March-19-2024"]
[Site "Chess.com"]
[Date "2024.03.19"]
[Round "5"]
[White "Flawless_Fighter"]
[Black "djano"]
[Result "1-0"]
[WhiteElo "2841"]
[BlackElo "2630"]
[TimeControl "180+1"]
[EndTime "8:55:40 PDT"]
[Termination "Flawless_Fighter won by resignation"]

1. e4 {[%clk 0:03:00.9]} 1... c5 {[%clk 0:03:00.2]} 2. Nf3 {[%clk 0:03:01.3]}
2... Nc6 {[%clk 0:03:00.4]} 3. Bb5 {[%clk 0:03:00.6]} 3... e5 {[%clk 0:03:00.7]}
4. O-O {[%clk 0:03:00.3]} 4... Nge7 {[%clk 0:03:00.3]} 5. c3 {[%clk 0:03:00]}
5... g6 {[%clk 0:02:59.3]} 6. d4 {[%clk 0:02:59.7]} 6... cxd4 {[%clk 0:03:00.2]}
7. cxd4 {[%clk 0:03:00.3]} 7... exd4 {[%clk 0:03:01.1]} 8. Nxd4 {[%clk
0:03:00.3]} 8... Bg7 {[%clk 0:03:01.6]} 9. Nxc6 {[%clk 0:03:00.6]} 9... bxc6
{[%clk 0:03:00.1]} 10. Bc4 {[%clk 0:02:59.8]} 10... d5 {[%clk 0:02:56.6]} 11.
exd5 {[%clk 0:02:59.6]} 11... cxd5 {[%clk 0:02:53.2]} 12. Bb5+ {[%clk
0:02:57.3]} 12... Bd7 {[%clk 0:02:53.5]} 13. Qa4 {[%clk 0:02:54.1]} 13... Rb8
{[%clk 0:02:39.5]} 14. Na3 {[%clk 0:02:34.4]} 14... Rxb5 {[%clk 0:02:19.8]} 15.
Nxb5 {[%clk 0:02:35.3]} 15... Qb6 {[%clk 0:02:19.6]} 16. Qxa7 {[%clk 0:02:10.7]}
16... Qxb5 {[%clk 0:02:11.6]} 17. Re1 {[%clk 0:01:58.1]} 17... Be6 {[%clk
0:01:26.4]} 18. Bg5 {[%clk 0:01:48.1]} 18... Qd7 {[%clk 0:01:26.3]} 19. Qa8+
{[%clk 0:01:37.8]} 19... Qc8 {[%clk 0:01:13.2]} 20. Qa3 {[%clk 0:01:35.8]} 20...
Qd7 {[%clk 0:00:58.1]} 21. Rac1 {[%clk 0:01:30.6]} 21... f6 {[%clk 0:00:58.5]}
22. Bf4 {[%clk 0:01:26.3]} 22... Kf7 {[%clk 0:00:59]} 23. Rc7 {[%clk 0:01:25.7]}
23... Qd8 {[%clk 0:00:56.9]} 24. Qe3 {[%clk 0:01:14]} 1-0

[Event "Early-Titled-Tuesday-Blitz-March-19-2024"]
[Site "Chess.com"]
[Date "2024.03.19"]
[Round "5"]
[White "ChessFanNM"]
[Black "JERO-8914"]
[Result "0-1"]
[WhiteElo "2264"]
[BlackElo "2454"]
[TimeControl "180+1"]
[EndTime "8:55:46 PDT"]
[Termination "JERO-8914 won by resignation"]

1. e4 {[%clk 0:03:00.8]} 1... c6 {[%clk 0:02:58]} 2. d4 {[%clk 0:03:00]} 2... d5
{[%clk 0:02:58.9]} 3. exd5 {[%clk 0:03:00.2]} 3... cxd5 {[%clk 0:02:59.8]} 4.
Nf3 {[%clk 0:02:59.9]} 4... Nc6 {[%clk 0:02:59.1]} 5. c4 {[%clk 0:02:59.3]} 5...
Nf6 {[%clk 0:02:58.6]} 6. Nc3 {[%clk 0:02:53.8]} 6... e6 {[%clk 0:02:58.7]} 7.
cxd5 {[%clk 0:02:52.6]} 7... Nxd5 {[%clk 0:02:58.1]} 8. Bd3 {[%clk 0:02:52]}
8... Be7 {[%clk 0:02:58]} 9. O-O {[%clk 0:02:51.5]} 9... O-O {[%clk 0:02:58.6]}
10. Re1 {[%clk 0:02:51.3]} 10... Nf6 {[%clk 0:02:58.2]} 11. a3 {[%clk 0:02:49]}
11... a6 {[%clk 0:02:57.4]} 12. Ne4 {[%clk 0:02:25.7]} 12... b5 {[%clk
0:02:52.7]} 13. Nxf6+ {[%clk 0:02:15.9]} 13... Bxf6 {[%clk 0:02:51.9]} 14. Qc2
{[%clk 0:02:01.9]} 14... Nxd4 {[%clk 0:02:50.3]} 15. Nxd4 {[%clk 0:01:57.5]}
15... Bxd4 {[%clk 0:02:49.8]} 16. Bxh7+ {[%clk 0:01:56.7]} 16... Kh8 {[%clk
0:02:47.6]} 17. Be4 {[%clk 0:01:56.5]} 17... Ra7 {[%clk 0:02:43.9]} 18. Bf4
{[%clk 0:01:55.7]} 18... e5 {[%clk 0:02:39]} 19. Bd2 {[%clk 0:01:44.5]} 19...
Rc7 {[%clk 0:02:37.3]} 20. Qd1 {[%clk 0:01:43.8]} 20... Qh4 {[%clk 0:02:21.9]}
21. g3 {[%clk 0:01:31]} 21... Qh3 {[%clk 0:02:19.5]} 22. Bg2 {[%clk 0:01:28.1]}
22... Qh7 {[%clk 0:02:13.5]} 23. Re4 {[%clk 0:01:26.5]} 23... Kg8 {[%clk
0:02:00.5]} 24. Rh4 {[%clk 0:01:18.9]} 24... Qg6 {[%clk 0:01:54.6]} 25. Be4
{[%clk 0:01:16.1]} 25... Bf5 {[%clk 0:01:50.8]} 26. Bd5 {[%clk 0:00:54.3]} 26...
Bxb2 {[%clk 0:01:42.7]} 27. Ra2 {[%clk 0:00:44.9]} 27... Rd8 {[%clk 0:01:26.9]}
28. Be3 {[%clk 0:00:39.3]} 28... Bd4 {[%clk 0:01:22.2]} 29. Rxd4 {[%clk
0:00:31.6]} 29... exd4 {[%clk 0:01:20]} 30. Qxd4 {[%clk 0:00:32]} 30... Rcd7
{[%clk 0:01:18.3]} 0-1

[Event "Early-Titled-Tuesday-Blitz-March-19-2024"]
[Site "Chess.com"]
[Date "2024.03.19"]
[Round "5"]
[White "js20000"]
[Black "UK_23"]
[Result "1-0"]
[WhiteElo "2793"]
[BlackElo "2389"]
[TimeControl "180+1"]
[EndTime "8:55:48 PDT"]
[Termination "js20000 won by resignation"]

1. d4 {[%clk 0:03:00.9]} 1... d5 {[%clk 0:02:56.7]} 2. Nf3 {[%clk 0:02:58.2]}
2... Nf6 {[%clk 0:02:56.1]} 3. Bf4 {[%clk 0:02:59.1]} 3... c5 {[%clk 0:02:55.6]}
4. e3 {[%clk 0:02:58.7]} 4... Nc6 {[%clk 0:02:53.5]} 5. Nbd2 {[%clk 0:02:58.3]}
5... Bg4 {[%clk 0:02:53.8]} 6. c3 {[%clk 0:02:53.4]} 6... e6 {[%clk 0:02:53.2]}
7. Qa4 {[%clk 0:02:46.6]} 7... Nd7 {[%clk 0:02:52.1]} 8. Bb5 {[%clk 0:02:43]}
8... Rc8 {[%clk 0:02:47.9]} 9. h3 {[%clk 0:02:40.8]} 9... Bxf3 {[%clk 0:02:40]}
10. Nxf3 {[%clk 0:02:41.7]} 10... a6 {[%clk 0:02:40.3]} 11. Bd3 {[%clk
0:02:40.2]} 11... Be7 {[%clk 0:02:34]} 12. O-O {[%clk 0:02:38.1]} 12... O-O
{[%clk 0:02:33.9]} 13. Qc2 {[%clk 0:02:25]} 13... h6 {[%clk 0:02:29.2]} 14. Qe2
{[%clk 0:02:24.3]} 14... b5 {[%clk 0:02:25.9]} 15. a4 {[%clk 0:02:19.3]} 15...
c4 {[%clk 0:02:24.4]} 16. Bc2 {[%clk 0:02:05.2]} 16... b4 {[%clk 0:02:18.6]} 17.
e4 {[%clk 0:02:05.4]} 17... Qa5 {[%clk 0:02:16.4]} 18. exd5 {[%clk 0:01:57.4]}
18... exd5 {[%clk 0:02:16.6]} 19. Bf5 {[%clk 0:01:57.3]} 19... Rcd8 {[%clk
0:02:08.6]} 20. Rfc1 {[%clk 0:01:49.1]} 20... Rfe8 {[%clk 0:02:07]} 21. Qd2
{[%clk 0:01:45.9]} 21... Nf6 {[%clk 0:02:04.4]} 22. Bxh6 {[%clk 0:01:41.7]}
22... Ne4 {[%clk 0:01:55.1]} 23. Qf4 {[%clk 0:01:26.5]} 23... Rd6 {[%clk
0:01:32.7]} 24. Bg5 {[%clk 0:01:14.1]} 24... Nxg5 {[%clk 0:01:28.7]} 25. Nxg5
{[%clk 0:01:12.1]} 25... Bxg5 {[%clk 0:01:22.4]} 26. Qxd6 {[%clk 0:01:07.9]}
26... Bxc1 {[%clk 0:01:17.8]} 27. Rxc1 {[%clk 0:01:05.2]} 27... Qxa4 {[%clk
0:01:00.2]} 28. Bd7 {[%clk 0:01:01.7]} 28... bxc3 {[%clk 0:00:46.3]} 29. bxc3
{[%clk 0:00:59.7]} 1-0

[Event "Early-Titled-Tuesday-Blitz-March-19-2024"]
[Site "Chess.com"]
[Date "2024.03.19"]
[Round "5"]
[White "SARGISMV"]
[Black "Daaksboy"]
[Result "1-0"]
[WhiteElo "2489"]
[BlackElo "1991"]
[TimeControl "180+1"]
[EndTime "8:55:49 PDT"]
[Termination "SARGISMV won by resignation"]

1. d4 {[%clk 0:03:00.9]} 1... Nf6 {[%clk 0:02:59.8]} 2. Nc3 {[%clk 0:03:01.2]}
2... d5 {[%clk 0:02:56.2]} 3. Bf4 {[%clk 0:02:59.3]} 3... g6 {[%clk 0:02:55.6]}
4. Nf3 {[%clk 0:02:42.8]} 4... Bg7 {[%clk 0:02:54.1]} 5. h4 {[%clk 0:02:42.3]}
5... O-O {[%clk 0:02:51.5]} 6. Ne5 {[%clk 0:02:39.8]} 6... h5 {[%clk 0:02:47.8]}
7. e3 {[%clk 0:02:37.2]} 7... c5 {[%clk 0:02:48]} 8. dxc5 {[%clk 0:02:22.8]}
8... Ng4 {[%clk 0:02:37.6]} 9. Nxg4 {[%clk 0:01:59.7]} 9... Bxg4 {[%clk
0:02:36]} 10. f3 {[%clk 0:01:56.2]} 10... Be6 {[%clk 0:02:31.5]} 11. g4 {[%clk
0:01:51]} 11... Qa5 {[%clk 0:02:25.8]} 12. gxh5 {[%clk 0:01:42.2]} 12... d4
{[%clk 0:01:56.6]} 13. exd4 {[%clk 0:01:36.7]} 13... Rd8 {[%clk 0:01:56.3]} 14.
hxg6 {[%clk 0:01:25.9]} 14... Rxd4 {[%clk 0:01:53.1]} 15. gxf7+ {[%clk
0:01:25.1]} 15... Kxf7 {[%clk 0:01:52.6]} 16. Bd2 {[%clk 0:01:24.3]} 16... Qxc5
{[%clk 0:01:47.9]} 17. Bd3 {[%clk 0:01:20.5]} 17... Nc6 {[%clk 0:01:44.9]} 18.
Qe2 {[%clk 0:01:19.4]} 18... Nb4 {[%clk 0:01:39.9]} 19. Bg6+ {[%clk 0:01:07.1]}
19... Kxg6 {[%clk 0:01:35.4]} 20. Qxe6+ {[%clk 0:01:06.7]} 20... Kh7 {[%clk
0:01:35.4]} 21. O-O-O {[%clk 0:01:03.8]} 21... Rc8 {[%clk 0:01:04.8]} 22. Rhg1
{[%clk 0:01:02.6]} 22... Nxa2+ {[%clk 0:00:54.3]} 23. Qxa2 {[%clk 0:01:00.9]}
23... Rxd2 {[%clk 0:00:52]} 24. Rxg7+ {[%clk 0:00:53.8]} 24... Kxg7 {[%clk
0:00:51]} 25. Rxd2 {[%clk 0:00:53.6]} 25... Qe3 {[%clk 0:00:48]} 26. Qd5 {[%clk
0:00:49.5]} 26... Rc5 {[%clk 0:00:38.6]} 27. Qd4+ {[%clk 0:00:47.5]} 1-0